[Event "Romanian Championship 2024"]
[Site "Eforie Nord"]
[Date "2024.02.28"]
[Round "6.16"]
[White "Daianu, Cristian-Clement"]
[Black "Buzbuchi, Ionut"]
[Result "1-0"]
[ECO "B35"]
[WhiteElo "2201"]
[BlackElo "2039"]
[Annotator "RC"]
[PlyCount "61"]
[EventDate "2024.02.24"]
[EventType "swiss"]
[EventCountry "ROU"]
[SourceTitle "playchess.com"]
[Source "ChessBase"]
[SourceQuality "1"]
[TimeControl "40/5400+30:900+30"]

1. e4 {[%emt 0:05:22]} c5 {[%emt 0:00:18]} 2. Nf3 {[%emt 0:00:33]} Nc6 {[%emt 0:00:04]} 3. d4 {[%emt 0:00:10]} cxd4 {[%emt 0:00:06]} 4. Nxd4 {[%emt 0:00:03]} Nf6 {[%emt 0:00:06]} 5. Nc3 {[%emt 0:00:05]} g6 {[%emt 0:00:05]} 6. Be3 {[%emt 0:02:58]} Bg7 {[%emt 0:00:06]} 7. Bc4 {[%emt 0:00:41]} O-O {[%emt 0:00:14]} 8. Bb3 {[%emt 0:00:28]} Ng4 {[%emt 0:11:42]} 9. Qxg4 {[%emt 0:04:53]} Nxd4 {[%emt 0:00:59]} 10. Qh4 {[%emt 0:01:11]} d6 {[%emt 0:11:24]} 11. O-O {[%emt 0:05:16]} Nxb3 {[%emt 0:05:11]} 12. axb3 {[%emt 0:02:31]} Be6 {[%emt 0:00:22]} 13. Bh6 {[%emt 0:06:59]} a6 {[%emt 0:14:53]} 14. f4 {[%emt 0:07:08]} Bxh6 {[%emt 0:13:03]} 15. Qxh6 {[%emt 0:01:03]} f5 {[%emt 0:00:03]} 16. Rae1 {[%emt 0:02:00]} Rc8 {[%emt 0:01:45]} 17. h4 {[%emt 0:02:36]} Rf7 {[%emt 0:02:40]} 18. g4 {[%emt 0:15:00]} Bd7 {[%emt 0:14:09]} 19. exf5 {[%emt 0:04:48]} gxf5 {[%emt 0:00:07]} 20. g5 {[%emt 0:00:09]} Qb6+ {[%emt 0:05:56]} 21. Kh2 {[%emt 0:04:51]} Qd4 {[%emt 0:00:54]} 22. Rd1 {[%emt 0:11:26]} Qb4 {[%emt 0:02:04]} 23. Rf2 {[%emt 0:02:50]} Rxc3 {[%emt 0:01:20]} 24. bxc3 {[%emt 0:04:42]} Qxc3 {[%emt 0:00:02]} 25. g6 {[%emt 0:03:07]} hxg6 {[%emt 0:01:28]} 26. Rg1 {[%emt 0:00:13]} Rg7 {[%emt 0:01:36]} 27. Rxg6 {[%emt 0:01:08]} Rxg6 {[%emt 0:00:06]} 28. Qxg6+ {[%emt 0:00:04]} Kf8 {[%emt 0:00:05]} 29. Rg2 {[%emt 0:00:29]} Qh8 {[%emt 0:00:45]} 30. h5 {[%emt 0:00:49]} e6 {[%emt 0:01:16]} 31. h6 {[%emt 0:00:14]} 1-0

[Event "Romanian Championship 2024"]
[Site "Eforie Nord"]
[Date "2024.02.28"]
[Round "6.17"]
[White "Vedmediuc, Artiom"]
[Black "Maximov, Oleg"]
[Result "0-1"]
[ECO "B27"]
[WhiteElo "2034"]
[BlackElo "2186"]
[Annotator "RC"]
[PlyCount "92"]
[EventDate "2024.02.24"]
[EventType "swiss"]
[EventCountry "ROU"]
[SourceTitle "playchess.com"]
[Source "ChessBase"]
[SourceQuality "1"]
[TimeControl "40/5400+30:900+30"]

1. e4 {[%emt 0:00:12]} c5 {[%emt 0:00:04]} 2. Nf3 {[%emt 0:00:05]} g6 {[%emt 0:00:04]} 3. c3 {[%emt 0:00:04]} Bg7 {[%emt 0:00:04]} 4. d4 {[%emt 0:00:05]} cxd4 {[%emt 0:00:03]} 5. cxd4 {[%emt 0:00:07]} d5 {[%emt 0:00:02]} 6. e5 {[%emt 0:00:45]} Bg4 {[%emt 0:00:04]} 7. Bb5+ {[%emt 0:01:02]} Nd7 {[%emt 0:00:23]} 8. O-O {[%emt 0:00:40]} a6 {[%emt 0:00:26]} 9. Be2 {[%emt 0:01:59]} e6 {[%emt 0:01:52]} 10. Nbd2 {[%emt 0:02:46]} Rc8 {[%emt 0:05:15]} 11. Nb3 {[%emt 0:11:15]} Ne7 {[%emt 0:03:12]} 12. Bg5 {[%emt 0:02:23]} h6 {[%emt 0:00:32]} 13. Bxe7 {[%emt 0:04:03]} Qxe7 {[%emt 0:00:05]} 14. Ne1 {[%emt 0:00:11]} Bxe2 {[%emt 0:01:15]} 15. Qxe2 {[%emt 0:00:04]} O-O {[%emt 0:01:36]} 16. Nd3 {[%emt 0:02:55]} Rc4 {[%emt 0:01:08]} 17. Rac1 {[%emt 0:00:33]} b6 {[%emt 0:01:55]} 18. Rc2 {[%emt 0:19:50]} Rfc8 {[%emt 0:03:54]} 19. Rfc1 {[%emt 0:00:07]} a5 {[%emt 0:13:07]} 20. Rxc4 {[%emt 0:09:40]} Rxc4 {[%emt 0:00:49]} 21. Qe3 {[%emt 0:08:15]} h5 {[%emt 0:11:26]} 22. a3 {[%emt 0:05:31]} Nb8 {[%emt 0:03:43]} 23. h3 {[%emt 0:02:21]} Qc7 {[%emt 0:00:43]} 24. Rd1 {[%emt 0:01:30]} Nc6 {[%emt 0:07:20]} 25. Ne1 {[%emt 0:04:11]} Ne7 {[%emt 0:03:40]} 26. g4 {[%emt 0:01:00]} hxg4 {[%emt 0:00:18]} 27. hxg4 {[%emt 0:00:04]} a4 {[%emt 0:00:25]} 28. Nc1 {[%emt 0:01:28]} Nc6 {[%emt 0:01:45]} 29. Ne2 {[%emt 0:01:13]} Na5 {[%emt 0:01:07]} 30. Nc3 {[%emt 0:01:02]} Nb3 {[%emt 0:00:13]} 31. Nxa4 {[%emt 0:01:28]} Rxa4 {[%emt 0:09:40]} 32. Qxb3 {[%emt 0:00:02]} Rc4 {[%emt 0:00:16]} 33. Nf3 {[%emt 0:03:09]} Qc6 {[%emt 0:04:38]} 34. Kg2 {[%emt 0:01:02]} b5 {[%emt 0:03:05]} 35. Rh1 {[%emt 0:01:22]} Rc2 {[%emt 0:02:24]} 36. Ng5 {[%emt 0:00:30]} Rc4 {[%emt 0:01:30]} 37. Qf3 {[%emt 0:01:24]} Qc7 {[%emt 0:00:10]} 38. Qf4 {[%emt 0:01:29]} Bxe5 {[%emt 0:00:28]} 39. Qxe5 {[%emt 0:07:55]} Qxe5 {[%emt 0:00:10]} 40. dxe5 {[%emt 0:00:00]} Rxg4+ {[%emt 0:00:00]} 41. Kf3 {[%emt 0:00:56]} Rxg5 {[%emt 0:00:16]} 42. Rc1 {[%emt 0:01:48]} Rf5+ {[%emt 0:01:15]} 43. Kg3 {[%emt 0:00:22]} Rxe5 {[%emt 0:00:30]} 44. Rc5 {[%emt 0:00:02]} b4 {[%emt 0:00:20]} 45. a4 {[%emt 0:00:19]} Re2 {[%emt 0:00:13]} 46. b3 {[%emt 0:00:31]} Rb2 {[%emt 0:00:07]} 0-1

[Event "Romanian Championship 2024"]
[Site "Eforie Nord"]
[Date "2024.02.28"]
[Round "6.18"]
[White "Nastore, Pavel-Alexandru"]
[Black "Samu, Sorin-Mihai"]
[Result "1-0"]
[ECO "B07"]
[WhiteElo "2182"]
[BlackElo "2004"]
[Annotator "RC"]
[PlyCount "107"]
[EventDate "2024.02.24"]
[EventType "swiss"]
[EventCountry "ROU"]
[SourceTitle "playchess.com"]
[Source "ChessBase"]
[SourceQuality "1"]
[TimeControl "40/5400+30:900+30"]

1. e4 {[%emt 0:00:14]} d6 {[%emt 0:00:22]} 2. d4 {[%emt 0:00:05]} Nf6 {[%emt 0:00:07]} 3. Nc3 {[%emt 0:00:08]} c6 {[%emt 0:00:20]} 4. Nf3 {[%emt 0:10:50]} Bg4 {[%emt 0:02:41]} 5. Be2 {[%emt 0:00:37]} Bxf3 {[%emt 0:00:35]} 6. Bxf3 {[%emt 0:00:05]} Nbd7 {[%emt 0:00:14]} 7. O-O {[%emt 0:00:16]} e5 {[%emt 0:00:05]} 8. a4 {[%emt 0:10:06]} Be7 {[%emt 0:00:14]} 9. Be3 {[%emt 0:01:20]} O-O {[%emt 0:00:28]} 10. Qd2 {[%emt 0:01:46]} Re8 {[%emt 0:00:13]} 11. Rfe1 {[%emt 0:02:59]} Qc7 {[%emt 0:00:42]} 12. Rad1 {[%emt 0:02:27]} Nf8 {[%emt 0:00:39]} 13. Be2 {[%emt 0:17:22]} Ng6 {[%emt 0:00:31]} 14. h3 {[%emt 0:03:59]} a6 {[%emt 0:00:09]} 15. d5 {[%emt 0:10:06]} h6 {[%emt 0:03:41]} 16. g3 {[%emt 0:03:55]} Bf8 {[%emt 0:01:02]} 17. Ra1 {[%emt 0:05:19]} Rac8 {[%emt 0:02:00]} 18. dxc6 {[%emt 0:03:15]} Qxc6 {[%emt 0:02:00]} 19. Bf3 {[%emt 0:00:52]} Be7 {[%emt 0:02:56]} 20. a5 {[%emt 0:05:15]} Bd8 {[%emt 0:01:17]} 21. Ra4 {[%emt 0:01:27]} Qd7 {[%emt 0:00:13]} 22. Rea1 {[%emt 0:02:22]} Qxh3 {[%emt 0:01:21]} 23. Bg2 {[%emt 0:00:57]} Qd7 {[%emt 0:02:13]} 24. Qd3 {[%emt 0:02:53]} Ne7 {[%emt 0:01:11]} 25. b4 {[%emt 0:00:22]} Qc6 {[%emt 0:04:02]} 26. Bd2 {[%emt 0:00:19]} Ng6 {[%emt 0:02:17]} 27. R1a2 {[%emt 0:02:28]} Nf8 {[%emt 0:00:18]} 28. b5 {[%emt 0:02:24]} axb5 {[%emt 0:00:12]} 29. Nxb5 {[%emt 0:00:07]} Ne6 {[%emt 0:01:44]} 30. Be3 {[%emt 0:01:31]} Nc5 {[%emt 0:00:22]} 31. Bxc5 {[%emt 0:00:04]} Qxc5 {[%emt 0:01:26]} 32. Nxd6 {[%emt 0:00:22]} b5 {[%emt 0:02:09]} 33. Nxb5 {[%emt 0:07:21]} Ng4 {[%emt 0:01:05]} 34. c4 {[%emt 0:00:15]} Bg5 {[%emt 0:00:18]} 35. Qd6 {[%emt 0:02:31]} Be3 {[%emt 0:01:13]} 36. Qxc5 {[%emt 0:00:04]} Bxc5 {[%emt 0:00:02]} 37. Bh3 {[%emt 0:01:16]} f5 {[%emt 0:01:18]} 38. a6 {[%emt 0:01:07]} Red8 {[%emt 0:00:36]} 39. Bxg4 {[%emt 0:00:32]} fxg4 {[%emt 0:00:25]} 40. a7 {[%emt 0:00:00]} Rd1+ {[%emt 0:00:00]} 41. Kg2 {[%emt 0:00:20]} Bxa7 {[%emt 0:05:40]} 42. Nxa7 {[%emt 0:00:16]} Rc5 {[%emt 0:00:31]} 43. Nb5 {[%emt 0:00:31]} Rc1 {[%emt 0:00:28]} 44. Nd6 {[%emt 0:00:03]} Rd1 {[%emt 0:01:04]} 45. Nf5 {[%emt 0:00:45]} Rd7 {[%emt 0:01:49]} 46. Ra8+ {[%emt 0:00:17]} Kh7 {[%emt 0:00:33]} 47. R8a7 {[%emt 0:00:10]} Rcc7 {[%emt 0:01:29]} 48. Rxc7 {[%emt 0:00:16]} Rxc7 {[%emt 0:00:09]} 49. Ne3 {[%emt 0:00:41]} h5 {[%emt 0:00:26]} 50. Ra5 {[%emt 0:00:33]} Re7 {[%emt 0:00:07]} 51. c5 {[%emt 0:00:25]} g5 {[%emt 0:00:25]} 52. c6 {[%emt 0:00:06]} Rc7 {[%emt 0:00:27]} 53. Rc5 {[%emt 0:00:22]} h4 {[%emt 0:00:11]} 54. Nxg4 {[%emt 0:00:09]} 1-0

[Event "Romanian Championship 2024"]
[Site "Eforie Nord"]
[Date "2024.02.28"]
[Round "6.19"]
[White "Pisu, Robert-Daniel"]
[Black "Melinte, Rares-Andrei"]
[Result "0-1"]
[ECO "E73"]
[WhiteElo "2154"]
[BlackElo "1989"]
[Annotator "RC"]
[PlyCount "82"]
[EventDate "2024.02.24"]
[EventType "swiss"]
[EventCountry "ROU"]
[SourceTitle "playchess.com"]
[Source "ChessBase"]
[SourceQuality "1"]
[TimeControl "40/5400+30:900+30"]

1. d4 {[%emt 0:01:02]} Nf6 {[%emt 0:00:10]} 2. c4 {[%emt 0:00:11]} g6 {[%emt 0:00:07]} 3. Nc3 {[%emt 0:00:08]} Bg7 {[%emt 0:00:08]} 4. e4 {[%emt 0:00:10]} d6 {[%emt 0:00:08]} 5. Be2 {[%emt 0:00:13]} O-O {[%emt 0:00:14]} 6. Be3 {[%emt 0:00:13]} Na6 {[%emt 0:00:36]} 7. g4 {[%emt 0:06:55]} e5 {[%emt 0:03:51]} 8. d5 {[%emt 0:00:44]} Nc5 {[%emt 0:00:18]} 9. Bf3 {[%emt 0:01:16]} c6 {[%emt 0:04:53]} 10. g5 {[%emt 0:08:54]} Ne8 {[%emt 0:01:27]} 11. h4 {[%emt 0:14:14]} cxd5 {[%emt 0:02:04]} 12. cxd5 {[%emt 0:11:48]} a5 {[%emt 0:03:48]} 13. h5 {[%emt 0:24:20]} b5 {[%emt 0:05:19]} 14. a3 {[%emt 0:05:35]} a4 {[%emt 0:05:12]} 15. Nge2 {[%emt 0:03:42]} Nb3 {[%emt 0:01:39]} 16. Rb1 {[%emt 0:00:10]} f5 {[%emt 0:01:32]} 17. h6 {[%emt 0:05:28]} Bh8 {[%emt 0:00:35]} 18. Nxb5 {[%emt 0:01:03]} Ba6 {[%emt 0:22:21]} 19. Nbc3 {[%emt 0:00:36]} f4 {[%emt 0:02:16]} 20. Bd2 {[%emt 0:01:24]} Bd3 {[%emt 0:02:19]} 21. Nxa4 {[%emt 0:05:51]} Nxd2 {[%emt 0:12:39]} 22. Kxd2 {[%emt 0:00:07]} Bxb1 {[%emt 0:01:12]} 23. Nac3 {[%emt 0:00:17]} Qxg5 {[%emt 0:01:42]} 24. Qxb1 {[%emt 0:00:06]} Nc7 {[%emt 0:01:05]} 25. a4 {[%emt 0:01:35]} Rfb8 {[%emt 0:03:31]} 26. b4 {[%emt 0:00:05]} Na6 {[%emt 0:00:50]} 27. b5 {[%emt 0:00:09]} Nc5 {[%emt 0:00:16]} 28. Qb4 {[%emt 0:00:16]} Bf6 {[%emt 0:00:41]} 29. Nc1 {[%emt 0:06:00]} Bd8 {[%emt 0:01:20]} 30. Nb3 {[%emt 0:00:15]} Nxb3+ {[%emt 0:00:42]} 31. Qxb3 {[%emt 0:00:02]} Ba5 {[%emt 0:00:31]} 32. Kd3 {[%emt 0:01:30]} Bxc3 {[%emt 0:01:25]} 33. Kxc3 {[%emt 0:00:10]} Qd8 {[%emt 0:00:10]} 34. Qb4 {[%emt 0:02:25]} Qc7+ {[%emt 0:01:41]} 35. Kb2 {[%emt 0:00:34]} Rc8 {[%emt 0:02:30]} 36. Qb3 {[%emt 0:00:11]} Qc5 {[%emt 0:01:22]} 37. Bg4 {[%emt 0:00:38]} Qd4+ {[%emt 0:00:54]} 38. Kb1 {[%emt 0:00:26]} Rc3 {[%emt 0:00:31]} 39. Be6+ {[%emt 0:00:16]} Kf8 {[%emt 0:00:29]} 40. Rh3 {[%emt 0:00:00]} Rxb3+ {[%emt 0:00:00]} 41. Rxb3 {[%emt 0:04:45]} Rxa4 {[%emt 0:00:44]} 0-1

[Event "Romanian Championship 2024"]
[Site "Eforie Nord"]
[Date "2024.02.28"]
[Round "6.20"]
[White "Costescu, Mihnea-Constantin"]
[Black "Coicev, Matei-Andrei"]
[Result "1-0"]
[ECO "B38"]
[WhiteElo "1944"]
[BlackElo "2122"]
[Annotator "RC"]
[PlyCount "87"]
[EventDate "2024.02.24"]
[EventType "swiss"]
[EventCountry "ROU"]
[SourceTitle "playchess.com"]
[Source "ChessBase"]
[SourceQuality "1"]
[TimeControl "40/5400+30:900+30"]

1. Nf3 {[%emt 0:00:03]} Nf6 {[%emt 0:00:38]} 2. c4 {[%emt 0:00:08]} g6 {[%emt 0:00:14]} 3. Nc3 {[%emt 0:00:09]} c5 {[%emt 0:00:33]} 4. d4 {[%emt 0:01:05]} cxd4 {[%emt 0:00:41]} 5. Nxd4 {[%emt 0:00:05]} Bg7 {[%emt 0:00:43]} 6. e4 {[%emt 0:01:41]} d6 {[%emt 0:00:33]} 7. Be2 {[%emt 0:03:25]} O-O {[%emt 0:00:41]} 8. O-O {[%emt 0:00:14]} Nc6 {[%emt 0:01:25]} 9. Be3 {[%emt 0:08:22]} Nxd4 {[%emt 0:03:01]} 10. Bxd4 {[%emt 0:00:20]} Nd7 {[%emt 0:00:23]} 11. Bxg7 {[%emt 0:01:18]} Kxg7 {[%emt 0:00:02]} 12. Bg4 {[%emt 0:00:17]} Nc5 {[%emt 0:02:22]} 13. b3 {[%emt 0:10:13]} Qa5 {[%emt 0:06:45]} 14. Rc1 {[%emt 0:10:50]} Bxg4 {[%emt 0:01:57]} 15. Qxg4 {[%emt 0:00:09]} a6 {[%emt 0:03:58]} 16. Qe2 {[%emt 0:05:15]} b5 {[%emt 0:03:56]} 17. Nd5 {[%emt 0:05:48]} Qd8 {[%emt 0:05:19]} 18. b4 {[%emt 0:50:08]} Nd7 {[%emt 0:02:38]} 19. cxb5 {[%emt 0:00:00]} axb5 {[%emt 0:00:30]} 20. Nc7 {[%emt 0:00:00]} Ra4 {[%emt 0:02:20]} 21. a3 {[%emt 0:00:00]} Nf6 {[%emt 0:01:19]} 22. Rfd1 {[%emt 0:00:00]} Qb8 {[%emt 0:03:52]} 23. Nxb5 {[%emt 0:00:00]} Qb6 {[%emt 0:58:10]} 24. e5 {[%emt 0:00:00]} dxe5 {[%emt 0:00:00]} 25. Qxe5 {[%emt 0:00:00]} Kg8 {[%emt 0:00:00]} 26. h3 {[%emt 0:00:00]} Rb8 {[%emt 0:00:00]} 27. Qxe7 {[%emt 0:00:00]} Re8 {[%emt 0:00:00]} 28. Qc5 {[%emt 0:00:00]} Qb8 {[%emt 0:00:00]} 29. Nc7 {[%emt 0:00:00]} Re2 {[%emt 0:00:00]} 30. Qc6 {[%emt 0:00:00]} Ne4 {[%emt 0:00:00]} 31. Qxa4 {[%emt 0:00:00]} Qb6 {[%emt 0:00:00]} 32. Qe8+ {[%emt 0:00:00]} Kg7 {[%emt 0:00:00]} 33. Qe5+ {[%emt 0:00:00]} Kh6 {[%emt 0:00:00]} 34. Qd4 {[%emt 0:00:00]} Re1+ {[%emt 0:00:00]} 35. Kh2 {[%emt 0:00:00]} Qxd4 {[%emt 0:00:00]} 36. Rxd4 {[%emt 0:00:00]} Rxc1 {[%emt 0:00:00]} 37. Rxe4 {[%emt 0:00:00]} Rxc7 {[%emt 0:00:00]} 38. a4 {[%emt 0:00:00]} Kg5 {[%emt 0:00:00]} 39. Re5+ {[%emt 0:00:00]} Kf6 {[%emt 0:00:00]} 40. Rb5 {[%emt 0:00:00]} Ke6 {[%emt 0:00:00]} 41. Kg3 {[%emt 0:00:00]} Rc3+ {[%emt 0:00:00]} 42. f3 {[%emt 0:00:00]} Kd6 {[%emt 0:00:00]} 43. a5 {[%emt 0:00:00]} Ra3 {[%emt 0:00:00]} 44. Rb7 {[%emt 0:00:00]} 1-0

[Event "Romanian Championship 2024"]
[Site "Eforie Nord"]
[Date "2024.02.28"]
[Round "6.21"]
[White "Dodoi, Matei-Teodor"]
[Black "Botea, David-Alexandru"]
[Result "1/2-1/2"]
[ECO "E19"]
[WhiteElo "1947"]
[BlackElo "2081"]
[Annotator "RC"]
[PlyCount "82"]
[EventDate "2024.02.24"]
[EventType "swiss"]
[EventCountry "ROU"]
[SourceTitle "playchess.com"]
[Source "ChessBase"]
[SourceQuality "1"]
[TimeControl "40/5400+30:900+30"]

1. d4 {[%emt 0:00:04]} Nf6 {[%emt 0:00:24]} 2. c4 {[%emt 0:00:09]} e6 {[%emt 0:00:02]} 3. Nf3 {[%emt 0:00:10]} b6 {[%emt 0:00:02]} 4. g3 {[%emt 0:00:19]} Bb7 {[%emt 0:00:20]} 5. Bg2 {[%emt 0:00:18]} Be7 {[%emt 0:00:17]} 6. O-O {[%emt 0:00:55]} O-O {[%emt 0:00:03]} 7. Nc3 {[%emt 0:00:51]} Ne4 {[%emt 0:00:22]} 8. Qc2 {[%emt 0:01:04]} Nxc3 {[%emt 0:03:31]} 9. Qxc3 {[%emt 0:01:25]} c5 {[%emt 0:01:24]} 10. Rd1 {[%emt 0:10:56]} cxd4 {[%emt 0:12:07]} 11. Nxd4 {[%emt 0:09:09]} Bxg2 {[%emt 0:01:28]} 12. Kxg2 {[%emt 0:00:07]} Qc8 {[%emt 0:02:37]} 13. Bf4 {[%emt 0:17:18]} Bf6 {[%emt 0:34:02]} 14. Qf3 {[%emt 0:05:31]} Nc6 {[%emt 0:03:41]} 15. Nxc6 {[%emt 0:09:01]} dxc6 {[%emt 0:04:21]} 16. Rd6 {[%emt 0:07:19]} Bxb2 {[%emt 0:02:14]} 17. Rad1 {[%emt 0:03:44]} Qe8 {[%emt 0:13:07]} 18. Qxc6 {[%emt 0:07:57]} Qxc6+ {[%emt 0:04:01]} 19. Rxc6 {[%emt 0:00:12]} Rac8 {[%emt 0:01:31]} 20. Rxc8 {[%emt 0:01:45]} Rxc8 {[%emt 0:00:01]} 21. Rd7 {[%emt 0:00:14]} h5 {[%emt 0:00:57]} 22. Rxa7 {[%emt 0:23:02]} Rxc4 {[%emt 0:00:18]} 23. Be3 {[%emt 0:00:00]} Bd4 {[%emt 0:01:39]} 24. Bxd4 {[%emt 0:00:00]} Rxd4 {[%emt 0:00:04]} 25. Rb7 {[%emt 0:00:00]} Ra4 {[%emt 0:00:46]} 26. Rxb6 {[%emt 0:00:00]} Rxa2 {[%emt 0:00:02]} 27. Kf3 {[%emt 0:00:00]} Kh7 {[%emt 0:01:12]} 28. h4 {[%emt 0:00:00]} Ra5 {[%emt 0:00:34]} 29. e3 {[%emt 0:00:00]} g5 {[%emt 0:01:27]} 30. hxg5 {[%emt 0:00:00]} Rxg5 {[%emt 0:00:02]} 31. Rb4 {[%emt 0:00:00]} Kg6 {[%emt 0:00:28]} 32. Ra4 {[%emt 0:00:00]} Rf5+ {[%emt 0:00:32]} 33. Kg2 {[%emt 0:00:00]} Rb5 {[%emt 0:04:22]} 34. f4 {[%emt 0:00:00]} e5 {[%emt 0:01:28]} 35. Kf3 {[%emt 0:00:00]} exf4 {[%emt 0:00:20]} 36. gxf4 {[%emt 0:00:00]} Rb1 {[%emt 0:01:42]} 37. Ra8 {[%emt 0:01:08]} f5 {[%emt 0:05:38]} 38. Rg8+ {[%emt 0:00:28]} Kf6 {[%emt 0:00:11]} 39. Rh8 {[%emt 0:02:45]} Kg6 {[%emt 0:00:53]} 40. Rg8+ {[%emt 0:00:00]} Kf6 {[%emt 0:00:00]} 41. Rh8 {[%emt 0:00:16]} Kg6 {[%emt 0:00:13]} 1/2-1/2

[Event "Romanian Championship 2024"]
[Site "Eforie Nord"]
[Date "2024.02.28"]
[Round "6.22"]
[White "Craciun, Sasha-Matei"]
[Black "Armenciu, Bogdan-Ovidiu"]
[Result "1/2-1/2"]
[ECO "B07"]
[WhiteElo "2080"]
[BlackElo "1936"]
[Annotator "RC"]
[PlyCount "95"]
[EventDate "2024.02.24"]
[EventType "swiss"]
[EventCountry "ROU"]
[SourceTitle "playchess.com"]
[Source "ChessBase"]
[SourceQuality "1"]
[TimeControl "40/5400+30:900+30"]

1. e4 {[%emt 0:00:31]} d6 {[%emt 0:00:12]} 2. d4 {[%emt 0:00:05]} Nf6 {[%emt 0:00:05]} 3. Nc3 {[%emt 0:00:03]} g6 {[%emt 0:00:04]} 4. g3 {[%emt 0:00:03]} Bg7 {[%emt 0:00:30]} 5. Bg2 {[%emt 0:00:11]} O-O {[%emt 0:02:49]} 6. Nge2 {[%emt 0:00:11]} c6 {[%emt 0:00:56]} 7. a4 {[%emt 0:00:31]} d5 {[%emt 0:01:16]} 8. e5 {[%emt 0:10:22]} Ne8 {[%emt 0:01:49]} 9. O-O {[%emt 0:01:51]} f6 {[%emt 0:05:43]} 10. exf6 {[%emt 0:02:49]} exf6 {[%emt 0:01:36]} 11. Nf4 {[%emt 0:03:05]} Nd6 {[%emt 0:03:34]} 12. Re1 {[%emt 0:00:35]} Re8 {[%emt 0:00:32]} 13. b3 {[%emt 0:03:23]} Na6 {[%emt 0:12:55]} 14. Ba3 {[%emt 0:02:26]} Nc7 {[%emt 0:00:35]} 15. Rxe8+ {[%emt 0:02:01]} Ndxe8 {[%emt 0:17:46]} 16. Qe2 {[%emt 0:05:38]} g5 {[%emt 0:00:04]} 17. Be7 {[%emt 0:09:22]} Qd7 {[%emt 0:00:05]} 18. Bh3 {[%emt 0:00:10]} f5 {[%emt 0:07:13]} 19. Bxg5 {[%emt 0:02:23]} Bxd4 {[%emt 0:00:31]} 20. Qd2 {[%emt 0:03:53]} Qg7 {[%emt 0:10:11]} 21. Nfe2 {[%emt 0:00:05]} Be5 {[%emt 0:12:52]} 22. Bf4 {[%emt 0:02:37]} Ne6 {[%emt 0:02:09]} 23. Bxe5 {[%emt 0:00:19]} Qxe5 {[%emt 0:00:02]} 24. Re1 {[%emt 0:01:48]} Nd6 {[%emt 0:03:58]} 25. f3 {[%emt 0:05:07]} Bd7 {[%emt 0:00:33]} 26. Nd1 {[%emt 0:08:28]} Re8 {[%emt 0:01:14]} 27. Kf2 {[%emt 0:03:09]} Nc5 {[%emt 0:02:55]} 28. Qd4 {[%emt 0:04:23]} Qxd4+ {[%emt 0:02:10]} 29. Nxd4 {[%emt 0:00:01]} Rxe1 {[%emt 0:00:15]} 30. Kxe1 {[%emt 0:00:01]} Kf7 {[%emt 0:01:14]} 31. Kd2 {[%emt 0:02:46]} Kf6 {[%emt 0:00:29]} 32. Bf1 {[%emt 0:01:12]} a5 {[%emt 0:01:03]} 33. Ke3 {[%emt 0:01:20]} Ne6 {[%emt 0:03:53]} 34. Nb2 {[%emt 0:04:28]} c5 {[%emt 0:01:45]} 35. Nxe6 {[%emt 0:00:07]} Bxe6 {[%emt 0:00:45]} 36. Kf4 {[%emt 0:01:39]} b6 {[%emt 0:00:42]} 37. g4 {[%emt 0:00:32]} fxg4 {[%emt 0:00:13]} 38. fxg4 {[%emt 0:00:01]} h6 {[%emt 0:00:26]} 39. h4 {[%emt 0:00:05]} c4 {[%emt 0:02:57]} 40. g5+ {[%emt 0:00:00]} hxg5+ {[%emt 0:00:00]} 41. hxg5+ {[%emt 0:02:28]} Ke7 {[%emt 0:00:23]} 42. bxc4 {[%emt 0:01:23]} dxc4 {[%emt 0:00:10]} 43. c3 {[%emt 0:00:04]} b5 {[%emt 0:03:17]} 44. axb5 {[%emt 0:00:53]} Nxb5 {[%emt 0:00:03]} 45. Nxc4 {[%emt 0:04:14]} a4 {[%emt 0:00:47]} 46. Ke5 {[%emt 0:02:46]} a3 {[%emt 0:05:04]} 47. Nxa3 {[%emt 0:00:05]} Nxa3 {[%emt 0:00:03]} 48. Bd3 {[%emt 0:00:05]} 1/2-1/2

[Event "Romanian Championship 2024"]
[Site "Eforie Nord"]
[Date "2024.02.28"]
[Round "6.23"]
[White "Cruceru-Uceanu, Tudor-Mihai"]
[Black "Mintau, Andrei-Catalin"]
[Result "1/2-1/2"]
[ECO "B33"]
[WhiteElo "1894"]
[BlackElo "2039"]
[Annotator "RC"]
[PlyCount "96"]
[EventDate "2024.02.24"]
[EventType "swiss"]
[EventCountry "ROU"]
[SourceTitle "playchess.com"]
[Source "ChessBase"]
[SourceQuality "1"]
[TimeControl "40/5400+30:900+30"]

1. e4 {[%emt 0:00:02]} c5 {[%emt 0:04:01]} 2. Nf3 {[%emt 0:00:05]} Nc6 {[%emt 0:00:10]} 3. d4 {[%emt 0:00:03]} cxd4 {[%emt 0:00:02]} 4. Nxd4 {[%emt 0:00:04]} Nf6 {[%emt 0:00:03]} 5. Nc3 {[%emt 0:00:37]} e5 {[%emt 0:00:07]} 6. Ndb5 {[%emt 0:00:27]} d6 {[%emt 0:00:08]} 7. Bg5 {[%emt 0:00:06]} a6 {[%emt 0:00:07]} 8. Na3 {[%emt 0:00:04]} b5 {[%emt 0:00:05]} 9. Nd5 {[%emt 0:00:03]} Be7 {[%emt 0:00:02]} 10. Bxf6 {[%emt 0:00:05]} Bxf6 {[%emt 0:00:03]} 11. c3 {[%emt 0:00:04]} O-O {[%emt 0:00:04]} 12. Nc2 {[%emt 0:00:05]} Rb8 {[%emt 0:00:03]} 13. Be2 {[%emt 0:03:21]} Bg5 {[%emt 0:00:55]} 14. Nce3 {[%emt 0:00:49]} Kh8 {[%emt 0:01:40]} 15. O-O {[%emt 0:00:25]} Ne7 {[%emt 0:04:54]} 16. b3 {[%emt 0:06:06]} Bxe3 {[%emt 0:05:58]} 17. Nxe3 {[%emt 0:00:19]} f5 {[%emt 0:00:10]} 18. Bf3 {[%emt 0:09:57]} f4 {[%emt 0:09:06]} 19. Nd5 {[%emt 0:00:10]} Nc6 {[%emt 0:05:49]} 20. Qd3 {[%emt 0:09:19]} g5 {[%emt 0:13:45]} 21. Qe2 {[%emt 0:01:11]} b4 {[%emt 0:18:08]} 22. Nxb4 {[%emt 0:02:19]} Nxb4 {[%emt 0:19:08]} 23. cxb4 {[%emt 0:00:05]} Rxb4 {[%emt 0:00:01]} 24. h3 {[%emt 0:04:58]} a5 {[%emt 0:06:33]} 25. Rfd1 {[%emt 0:05:16]} Qb6 {[%emt 0:00:58]} 26. Qd2 {[%emt 0:02:13]} Bb7 {[%emt 0:04:35]} 27. Qxd6 {[%emt 0:00:33]} Qxd6 {[%emt 0:00:06]} 28. Rxd6 {[%emt 0:00:04]} Re8 {[%emt 0:01:13]} 29. Rd7 {[%emt 0:11:45]} Bxe4 {[%emt 0:00:19]} 30. a3 {[%emt 0:00:09]} Rd4 {[%emt 0:00:03]} 31. Bxe4 {[%emt 0:05:57]} Rxd7 {[%emt 0:00:19]} 32. Bc6 {[%emt 0:00:05]} Red8 {[%emt 0:00:18]} 33. Bxd7 {[%emt 0:00:05]} Rxd7 {[%emt 0:00:02]} 34. Rb1 {[%emt 0:01:30]} Rb7 {[%emt 0:01:22]} 35. b4 {[%emt 0:00:08]} axb4 {[%emt 0:00:03]} 36. axb4 {[%emt 0:00:02]} Rb5 {[%emt 0:00:04]} 37. f3 {[%emt 0:00:12]} Kg7 {[%emt 0:00:02]} 38. Kf1 {[%emt 0:00:06]} Kf6 {[%emt 0:00:03]} 39. Ke2 {[%emt 0:00:11]} Ke6 {[%emt 0:00:20]} 40. Kd3 {[%emt 0:00:00]} Kd5 {[%emt 0:00:00]} 41. Kc3 {[%emt 0:00:17]} e4 {[%emt 0:03:02]} 42. fxe4+ {[%emt 0:01:47]} Kxe4 {[%emt 0:00:05]} 43. Kc4 {[%emt 0:00:12]} Rb8 {[%emt 0:03:53]} 44. Re1+ {[%emt 0:00:14]} Kf5 {[%emt 0:00:04]} 45. b5 {[%emt 0:00:34]} h5 {[%emt 0:08:46]} 46. Rb1 {[%emt 0:04:24]} g4 {[%emt 0:00:34]} 47. hxg4+ {[%emt 0:03:18]} hxg4 {[%emt 0:00:11]} 48. Kc5 {[%emt 0:04:02]} f3 {[%emt 0:03:02]} 1/2-1/2